[Event "Titled Tuesday Blitz November 29 Early 2022"]
[White "Maksimovic, Bojan"]
[Black "Sethuraman, S.P."]
[WhiteFideId "14408120"]
[BlackFideId "5021596"]
[WhiteElo "2447"]
[BlackElo "2545"]
[Result "1-0"]
[Round "08"]
[TimeControl "180+1"]
[Date "2022.11.30"]
[WhiteClock "0:00:07"]
[BlackClock "0:00:13"]

1. e4 {[%clk 0:03:00]}  c5 {[%clk 0:02:59]} 2. Nf3 {[%clk 0:03:00]}  e6 {[%clk 0:03:00]} 3. d4 {[%clk 0:03:00]}  cxd4 {[%clk 0:03:01]} 4. Nxd4 {[%clk 0:03:01]}  Nc6 {[%clk 0:03:02]} 5. Nc3 {[%clk 0:03:01]}  Qc7 {[%clk 0:03:02]} 6. Be3 {[%clk 0:03:01]}  a6 {[%clk 0:03:02]} 7. Qf3 {[%clk 0:03:02]}  b5 {[%clk 0:02:58]} 8. Nxc6 {[%clk 0:02:42]}  Qxc6 {[%clk 0:02:58]} 9. O-O-O {[%clk 0:02:36]}  b4 {[%clk 0:02:52]} 10. Nd5 {[%clk 0:02:09]}  Bb7 {[%clk 0:02:48]} 11. Nb6 {[%clk 0:01:52]}  Rd8 {[%clk 0:02:47]} 12. Qg3 {[%clk 0:01:11]}  Nf6 {[%clk 0:02:34]} 13. f3 {[%clk 0:01:09]}  Bc5 {[%clk 0:02:26]} 14. Bxc5 {[%clk 0:00:59]}  Qxc5 {[%clk 0:02:27]} 15. Qxg7 {[%clk 0:00:45]}  Ke7 {[%clk 0:02:26]} 16. Nc4 {[%clk 0:00:45]}  d6 {[%clk 0:01:58]} 17. Rxd6 {[%clk 0:00:10]}  Rhg8 {[%clk 0:01:37]} 18. Qh6 {[%clk 0:00:10]}  Rg6 {[%clk 0:01:25]} 19. Qf4 {[%clk 0:00:11]}  e5 {[%clk 0:00:42]} 20. Nxe5 {[%clk 0:00:11]}  Qxd6 {[%clk 0:00:41]} 21. Nxg6+ {[%clk 0:00:11]}  hxg6 {[%clk 0:00:41]} 22. Qxd6+ {[%clk 0:00:12]}  Kxd6 {[%clk 0:00:41]} 23. Bc4 {[%clk 0:00:12]}  Ke7 {[%clk 0:00:39]} 24. Rd1 {[%clk 0:00:11]}  Rxd1+ {[%clk 0:00:34]} 25. Kxd1 {[%clk 0:00:12]}  Nd7 {[%clk 0:00:33]} 26. Ke2 {[%clk 0:00:11]}  g5 {[%clk 0:00:34]} 27. Ke3 {[%clk 0:00:12]}  Ne5 {[%clk 0:00:33]} 28. Be2 {[%clk 0:00:12]}  f6 {[%clk 0:00:32]} 29. g3 {[%clk 0:00:12]}  Nf7 {[%clk 0:00:30]} 30. Kd4 {[%clk 0:00:11]}  Kd6 {[%clk 0:00:28]} 31. f4 {[%clk 0:00:06]}  a5 {[%clk 0:00:26]} 32. h4 {[%clk 0:00:04]}  gxf4 {[%clk 0:00:20]} 33. gxf4 {[%clk 0:00:05]}  Nh6 {[%clk 0:00:18]} 34. h5 {[%clk 0:00:05]}  Ke6 {[%clk 0:00:16]} 35. Bd3 {[%clk 0:00:03]}  Kd6 {[%clk 0:00:16]} 36. e5+ {[%clk 0:00:02]}  fxe5+ {[%clk 0:00:17]} 37. fxe5+ {[%clk 0:00:03]}  Ke6 {[%clk 0:00:17]} 38. Be4 {[%clk 0:00:03]}  Bxe4 {[%clk 0:00:15]} 39. Kxe4 {[%clk 0:00:04]}  Nf7 {[%clk 0:00:16]} 40. Kd4 {[%clk 0:00:04]}  Nxe5 {[%clk 0:00:15]} 41. Kc5 {[%clk 0:00:05]}  Nf3 {[%clk 0:00:11]} 42. Kb5 {[%clk 0:00:04]}  Nd4+ {[%clk 0:00:11]} 43. Kxa5 {[%clk 0:00:04]}  Nxc2 {[%clk 0:00:11]} 44. Ka4 {[%clk 0:00:04]}  Kf6 {[%clk 0:00:10]} 45. Kb3 {[%clk 0:00:04]}  Nd4+ {[%clk 0:00:09]} 46. Kxb4 {[%clk 0:00:05]}  Kg5 {[%clk 0:00:10]} 47. Kc5 {[%clk 0:00:05]}  Ne6+ {[%clk 0:00:09]} 48. Kd6 {[%clk 0:00:06]}  Nd4 {[%clk 0:00:09]} 49. Kd5 {[%clk 0:00:05]}  Nc2 {[%clk 0:00:09]} 50. a4 {[%clk 0:00:05]}  Kxh5 {[%clk 0:00:09]} 51. Kc5 {[%clk 0:00:06]}  Kg5 {[%clk 0:00:09]} 52. a5 {[%clk 0:00:06]}  Ne1 {[%clk 0:00:05]} 53. a6 {[%clk 0:00:06]}  Nd3+ {[%clk 0:00:06]} 54. Kb5 {[%clk 0:00:06]}  Nxb2 {[%clk 0:00:06]} 55. a7 {[%clk 0:00:06]}  Nd3 {[%clk 0:00:07]} 56. a8=Q {[%clk 0:00:06]}  Ne5 {[%clk 0:00:07]} 57. Qd5 {[%clk 0:00:06]}  Kf5 {[%clk 0:00:08]} 58. Kc5 {[%clk 0:00:06]}  Kf4 {[%clk 0:00:09]} 59. Kd4 {[%clk 0:00:05]}  Nf3+ {[%clk 0:00:10]} 60. Kd3 {[%clk 0:00:06]}  Ne5+ {[%clk 0:00:10]} 61. Ke2 {[%clk 0:00:06]}  Ng4 {[%clk 0:00:09]} 62. Qf3+ {[%clk 0:00:06]}  Kg5 {[%clk 0:00:09]} 63. Qg3 {[%clk 0:00:06]}  Kf5 {[%clk 0:00:09]} 64. Kd3 {[%clk 0:00:06]}  Ne5+ {[%clk 0:00:10]} 65. Kd4 {[%clk 0:00:06]}  Ng4 {[%clk 0:00:11]} 66. Qf3+ {[%clk 0:00:06]}  Kg5 {[%clk 0:00:11]} 67. Kd5 {[%clk 0:00:06]}  Nf6+ {[%clk 0:00:11]} 68. Ke6 {[%clk 0:00:06]}  Ng4 {[%clk 0:00:12]} 69. Qf5+ {[%clk 0:00:06]}  Kh4 {[%clk 0:00:13]} 70. Qf4 {[%clk 0:00:07]}  Kh3 {[%clk 0:00:13]} 71. Kf5 {[%clk 0:00:07]}  Nh2 {[%clk 0:00:13]} 72. Qg5 {[%clk 0:00:06]}  Nf3 {[%clk 0:00:13]} 73. Qg4+ {[%clk 0:00:06]}  Kh2 {[%clk 0:00:13]} 74. Qxf3 {[%clk 0:00:07]} 1-0


[Site "https://www.chess.com"]

[Event "Titled Tuesday Blitz November 29 Early 2022"]
[White "Manon-og, Ramon Jr."]
[Black "Aqib Javaid Butt"]
[WhiteFideId "5200776"]
[BlackFideId "7801262"]
[WhiteElo "2339"]
[BlackElo "1659"]
[Result "1-0"]
[Round "08"]
[TimeControl "180+1"]
[Date "2022.11.30"]
[WhiteClock "0:00:37"]
[BlackClock "0:00:09"]

1. e4 {[%clk 0:02:59]}  c6 {[%clk 0:02:58]} 2. d4 {[%clk 0:02:59]}  d5 {[%clk 0:02:59]} 3. e5 {[%clk 0:03:00]}  Bf5 {[%clk 0:02:58]} 4. Nd2 {[%clk 0:03:00]}  e6 {[%clk 0:02:59]} 5. Nb3 {[%clk 0:03:01]}  Nd7 {[%clk 0:02:58]} 6. Nf3 {[%clk 0:03:01]}  c5 {[%clk 0:02:51]} 7. dxc5 {[%clk 0:03:01]}  Nxc5 {[%clk 0:02:52]} 8. Nxc5 {[%clk 0:02:52]}  Bxc5 {[%clk 0:02:53]} 9. Bb5+ {[%clk 0:02:52]}  Kf8 {[%clk 0:02:54]} 10. O-O {[%clk 0:02:47]}  Ne7 {[%clk 0:02:53]} 11. c3 {[%clk 0:02:46]}  a6 {[%clk 0:02:53]} 12. Be2 {[%clk 0:02:42]}  Bg6 {[%clk 0:02:27]} 13. Bg5 {[%clk 0:02:36]}  Qc7 {[%clk 0:02:23]} 14. Rc1 {[%clk 0:02:23]}  Nc6 {[%clk 0:02:20]} 15. Bf4 {[%clk 0:02:21]}  Be4 {[%clk 0:02:04]} 16. c4 {[%clk 0:02:21]}  dxc4 {[%clk 0:01:47]} 17. Rxc4 {[%clk 0:02:20]}  Rd8 {[%clk 0:01:44]} 18. Qc1 {[%clk 0:02:16]}  Bxf3 {[%clk 0:01:19]} 19. Bxf3 {[%clk 0:02:17]}  Bd4 {[%clk 0:01:09]} 20. Bxc6 {[%clk 0:02:12]}  bxc6 {[%clk 0:01:09]} 21. Rxc6 {[%clk 0:02:13]}  Qb8 {[%clk 0:01:09]} 22. Rd1 {[%clk 0:02:07]}  h6 {[%clk 0:01:00]} 23. Rd3 {[%clk 0:01:49]}  g5 {[%clk 0:00:58]} 24. Rxd4 {[%clk 0:01:46]}  Rxd4 {[%clk 0:00:55]} 25. Rc8+ {[%clk 0:01:46]}  Qxc8 {[%clk 0:00:48]} 26. Qxc8+ {[%clk 0:01:45]}  Kg7 {[%clk 0:00:47]} 27. Qc1 {[%clk 0:01:44]}  Rhd8 {[%clk 0:00:37]} 28. Kf1 {[%clk 0:01:09]}  Rd1+ {[%clk 0:00:27]} 29. Ke2 {[%clk 0:01:09]}  Rxc1 {[%clk 0:00:27]} 30. Bxc1 {[%clk 0:01:10]}  Rd5 {[%clk 0:00:22]} 31. f4 {[%clk 0:01:10]}  Rc5 {[%clk 0:00:18]} 32. Kd1 {[%clk 0:01:04]}  gxf4 {[%clk 0:00:16]} 33. Bxf4 {[%clk 0:01:05]}  Kg6 {[%clk 0:00:16]} 34. Kd2 {[%clk 0:00:56]}  Kf5 {[%clk 0:00:16]} 35. Bxh6 {[%clk 0:00:56]}  Rxe5 {[%clk 0:00:15]} 36. h3 {[%clk 0:00:54]}  Ke4 {[%clk 0:00:13]} 37. Be3 {[%clk 0:00:44]}  Rd5+ {[%clk 0:00:13]} 38. Ke2 {[%clk 0:00:44]}  a5 {[%clk 0:00:11]} 39. h4 {[%clk 0:00:43]}  f5 {[%clk 0:00:11]} 40. g3 {[%clk 0:00:42]}  Rd3 {[%clk 0:00:12]} 41. Bf4 {[%clk 0:00:41]}  Rd4 {[%clk 0:00:12]} 42. h5 {[%clk 0:00:40]}  Rc4 {[%clk 0:00:11]} 43. Kd2 {[%clk 0:00:38]}  Rc7 {[%clk 0:00:10]} 44. Bxc7 {[%clk 0:00:36]}  e5 {[%clk 0:00:09]} 45. h6 {[%clk 0:00:36]}  f4 {[%clk 0:00:09]} 46. gxf4 {[%clk 0:00:37]} 1-0


[Site "https://www.chess.com"]

[Event "Titled Tuesday Blitz November 29 Early 2022"]
[White "Mendez, Ruddy Antonio"]
[Black "Mogirzan, Matei-Valeriu"]
[WhiteFideId "6403387"]
[BlackFideId "1257455"]
[WhiteElo "2106"]
[BlackElo "1733"]
[Result "1-0"]
[Round "08"]
[TimeControl "180+1"]
[Date "2022.11.30"]
[WhiteClock "0:01:03"]
[BlackClock "0:00:01"]

1. d4 {[%clk 0:03:00]}  c6 {[%clk 0:02:55]} 2. c4 {[%clk 0:03:00]}  d5 {[%clk 0:02:55]} 3. Nc3 {[%clk 0:03:00]}  dxc4 {[%clk 0:02:54]} 4. a4 {[%clk 0:02:59]}  g6 {[%clk 0:02:50]} 5. Nf3 {[%clk 0:02:59]}  Bg7 {[%clk 0:02:50]} 6. Ne5 {[%clk 0:02:56]}  Bxe5 {[%clk 0:02:33]} 7. dxe5 {[%clk 0:02:56]}  Qxd1+ {[%clk 0:02:34]} 8. Nxd1 {[%clk 0:02:55]}  Nd7 {[%clk 0:02:32]} 9. f4 {[%clk 0:02:52]}  Nc5 {[%clk 0:02:31]} 10. Be3 {[%clk 0:02:32]}  Nb3 {[%clk 0:02:28]} 11. Rb1 {[%clk 0:02:31]}  Bf5 {[%clk 0:02:26]} 12. Rc1 {[%clk 0:02:27]}  Nxc1 {[%clk 0:02:23]} 13. Bxc1 {[%clk 0:02:27]}  b5 {[%clk 0:02:18]} 14. g3 {[%clk 0:02:24]}  Be4 {[%clk 0:02:16]} 15. Rg1 {[%clk 0:02:22]}  e6 {[%clk 0:02:16]} 16. Nc3 {[%clk 0:02:22]}  Bd5 {[%clk 0:02:05]} 17. e4 {[%clk 0:02:17]}  b4 {[%clk 0:02:02]} 18. exd5 {[%clk 0:02:18]}  bxc3 {[%clk 0:02:01]} 19. d6 {[%clk 0:02:17]}  cxb2 {[%clk 0:01:54]} 20. Bxb2 {[%clk 0:02:17]}  Rb8 {[%clk 0:01:54]} 21. Bc3 {[%clk 0:02:14]}  Rb1+ {[%clk 0:01:53]} 22. Kd2 {[%clk 0:02:14]}  Kd7 {[%clk 0:01:43]} 23. Bd4 {[%clk 0:02:10]}  Nh6 {[%clk 0:01:40]} 24. Bxc4 {[%clk 0:02:09]}  Rxg1 {[%clk 0:01:36]} 25. Bxg1 {[%clk 0:02:09]}  Rb8 {[%clk 0:01:29]} 26. Kc3 {[%clk 0:02:01]}  a5 {[%clk 0:01:26]} 27. Ba7 {[%clk 0:01:47]}  Rb4 {[%clk 0:01:22]} 28. Bb3 {[%clk 0:01:46]}  Nf5 {[%clk 0:00:58]} 29. Bc5 {[%clk 0:01:44]}  Rb8 {[%clk 0:00:56]} 30. Ba7 {[%clk 0:01:38]}  Rb7 {[%clk 0:00:50]} 31. Bf2 {[%clk 0:01:35]}  f6 {[%clk 0:00:41]} 32. exf6 {[%clk 0:01:26]}  Kxd6 {[%clk 0:00:40]} 33. f7 {[%clk 0:01:26]}  Rxf7 {[%clk 0:00:39]} 34. Bb6 {[%clk 0:01:24]}  c5 {[%clk 0:00:30]} 35. Bxa5 {[%clk 0:01:23]}  Nd4 {[%clk 0:00:28]} 36. Bd1 {[%clk 0:01:13]}  Ra7 {[%clk 0:00:24]} 37. Bb6 {[%clk 0:01:12]}  Rb7 {[%clk 0:00:23]} 38. a5 {[%clk 0:01:13]}  Kc6 {[%clk 0:00:12]} 39. Ba4+ {[%clk 0:01:07]}  Kd5 {[%clk 0:00:09]} 40. Bd1 {[%clk 0:01:06]}  h5 {[%clk 0:00:04]} 41. h3 {[%clk 0:01:05]}  Kc6 {[%clk 0:00:02]} 42. Kc4 {[%clk 0:01:05]}  Rd7 {[%clk 0:00:02]} 43. Ba4+ {[%clk 0:01:05]}  Kd6 {[%clk 0:00:01]} 44. Bxd7 {[%clk 0:01:04]}  Kxd7 {[%clk 0:00:02]} 45. Kxc5 {[%clk 0:01:04]}  Ne2 {[%clk 0:00:01]} 46. a6 {[%clk 0:01:03]}  Kc8 {[%clk 0:00:01]} 47. Kc6 {[%clk 0:01:03]} 1-0


[Site "https://www.chess.com"]

[Event "Titled Tuesday Blitz November 29 Early 2022"]
[White "Ohanyan, Emin"]
[Black "Salman, Pavel"]
[WhiteFideId "13312022"]
[BlackFideId "24153753"]
[WhiteElo "2352"]
[BlackElo "2187"]
[Result "1-0"]
[Round "08"]
[TimeControl "180+1"]
[Date "2022.11.30"]
[WhiteClock "0:00:50"]
[BlackClock "0:00:01"]

1. e4 {[%clk 0:03:00]}  c5 {[%clk 0:02:59]} 2. Nf3 {[%clk 0:03:01]}  e6 {[%clk 0:03:00]} 3. d4 {[%clk 0:03:01]}  cxd4 {[%clk 0:03:01]} 4. Nxd4 {[%clk 0:03:00]}  a6 {[%clk 0:03:01]} 5. Bd3 {[%clk 0:03:00]}  Bc5 {[%clk 0:03:01]} 6. Nb3 {[%clk 0:03:00]}  Ba7 {[%clk 0:03:01]} 7. Qe2 {[%clk 0:03:01]}  Ne7 {[%clk 0:03:02]} 8. Be3 {[%clk 0:03:01]}  e5 {[%clk 0:03:02]} 9. c4 {[%clk 0:02:58]}  d6 {[%clk 0:03:01]} 10. Nc3 {[%clk 0:02:58]}  Nbc6 {[%clk 0:03:01]} 11. O-O {[%clk 0:02:58]}  O-O {[%clk 0:03:01]} 12. Rad1 {[%clk 0:02:59]}  Be6 {[%clk 0:03:00]} 13. Bxa7 {[%clk 0:02:54]}  Rxa7 {[%clk 0:03:00]} 14. Qe3 {[%clk 0:02:54]}  Qb8 {[%clk 0:03:00]} 15. f4 {[%clk 0:02:46]}  exf4 {[%clk 0:02:54]} 16. Qxf4 {[%clk 0:02:46]}  Ng6 {[%clk 0:02:53]} 17. Qg3 {[%clk 0:02:46]}  Nce5 {[%clk 0:02:41]} 18. Nd2 {[%clk 0:02:44]}  Nxd3 {[%clk 0:02:32]} 19. Qxd3 {[%clk 0:02:45]}  Ne5 {[%clk 0:02:33]} 20. Qd4 {[%clk 0:02:41]}  b5 {[%clk 0:02:09]} 21. cxb5 {[%clk 0:02:40]}  axb5 {[%clk 0:02:10]} 22. a3 {[%clk 0:02:40]}  Ra6 {[%clk 0:01:32]} 23. Nf3 {[%clk 0:02:33]}  Nxf3+ {[%clk 0:01:26]} 24. Rxf3 {[%clk 0:02:29]}  Qb6 {[%clk 0:01:19]} 25. Qxb6 {[%clk 0:02:24]}  Rxb6 {[%clk 0:01:19]} 26. Rd4 {[%clk 0:02:25]}  g6 {[%clk 0:01:02]} 27. Rfd3 {[%clk 0:02:23]}  Rfb8 {[%clk 0:00:48]} 28. Rxd6 {[%clk 0:02:20]}  Rxd6 {[%clk 0:00:48]} 29. Rxd6 {[%clk 0:02:20]}  b4 {[%clk 0:00:49]} 30. axb4 {[%clk 0:02:21]}  Rxb4 {[%clk 0:00:50]} 31. Rd2 {[%clk 0:02:22]}  Kg7 {[%clk 0:00:46]} 32. Kf2 {[%clk 0:02:23]}  Kf6 {[%clk 0:00:47]} 33. Ke1 {[%clk 0:02:21]}  Ke5 {[%clk 0:00:46]} 34. Kd1 {[%clk 0:02:22]}  h5 {[%clk 0:00:41]} 35. Kc2 {[%clk 0:02:19]}  h4 {[%clk 0:00:34]} 36. Rd8 {[%clk 0:02:10]}  g5 {[%clk 0:00:30]} 37. g3 {[%clk 0:02:08]}  hxg3 {[%clk 0:00:30]} 38. hxg3 {[%clk 0:02:09]}  f5 {[%clk 0:00:24]} 39. exf5 {[%clk 0:02:08]}  Kxf5 {[%clk 0:00:25]} 40. Rd3 {[%clk 0:02:05]}  Kg4 {[%clk 0:00:24]} 41. Re3 {[%clk 0:02:04]}  Bf5+ {[%clk 0:00:23]} 42. Kc1 {[%clk 0:02:05]}  Kh3 {[%clk 0:00:20]} 43. Ne2 {[%clk 0:01:55]}  Kg2 {[%clk 0:00:18]} 44. b3 {[%clk 0:01:48]}  Bg4 {[%clk 0:00:17]} 45. Kd2 {[%clk 0:01:39]}  Kf2 {[%clk 0:00:09]} 46. Nc1 {[%clk 0:01:38]}  Rd4+ {[%clk 0:00:09]} 47. Nd3+ {[%clk 0:01:38]}  Kg2 {[%clk 0:00:09]} 48. Kc3 {[%clk 0:01:38]}  Rd8 {[%clk 0:00:08]} 49. b4 {[%clk 0:01:38]}  Bf3 {[%clk 0:00:04]} 50. b5 {[%clk 0:01:37]}  g4 {[%clk 0:00:03]} 51. Re7 {[%clk 0:01:15]}  Kxg3 {[%clk 0:00:03]} 52. Rg7 {[%clk 0:01:16]}  Kh2 {[%clk 0:00:03]} 53. Ne5 {[%clk 0:01:16]}  Be4 {[%clk 0:00:03]} 54. Rxg4 {[%clk 0:01:12]}  Bf5 {[%clk 0:00:02]} 55. Rd4 {[%clk 0:01:09]}  Rxd4 {[%clk 0:00:02]} 56. Kxd4 {[%clk 0:01:10]}  Bc8 {[%clk 0:00:02]} 57. Nc4 {[%clk 0:01:06]}  Kg3 {[%clk 0:00:03]} 58. Kc5 {[%clk 0:01:04]}  Kf4 {[%clk 0:00:03]} 59. Nd6 {[%clk 0:01:05]}  Bh3 {[%clk 0:00:02]} 60. Nc4 {[%clk 0:00:50]}  Bg2 {[%clk 0:00:01]} 61. Kd6 {[%clk 0:00:50]} 1-0


[Site "https://www.chess.com"]

[Event "Titled Tuesday Blitz November 29 Early 2022"]
[White "Oro, Faustino"]
[Black "Molina, Roberto Junio Brito"]
[WhiteFideId "20000197"]
[BlackFideId "2109450"]
[WhiteElo "2066"]
[BlackElo "2388"]
[Result "1-0"]
[Round "08"]
[TimeControl "180+1"]
[Date "2022.11.30"]
[WhiteClock "0:00:06"]
[BlackClock "0:00:14"]

1. e4 {[%clk 0:03:00]}  c5 {[%clk 0:02:48]} 2. Nf3 {[%clk 0:03:00]}  e6 {[%clk 0:02:48]} 3. d4 {[%clk 0:02:54]}  cxd4 {[%clk 0:02:49]} 4. Nxd4 {[%clk 0:02:55]}  Nc6 {[%clk 0:02:49]} 5. Nc3 {[%clk 0:02:54]}  Qc7 {[%clk 0:02:49]} 6. Be3 {[%clk 0:02:53]}  a6 {[%clk 0:02:48]} 7. Qf3 {[%clk 0:02:53]}  Bb4 {[%clk 0:02:46]} 8. O-O-O {[%clk 0:02:51]}  Bxc3 {[%clk 0:02:45]} 9. bxc3 {[%clk 0:02:51]}  Nge7 {[%clk 0:02:44]} 10. Qg3 {[%clk 0:02:43]}  Qxg3 {[%clk 0:02:42]} 11. hxg3 {[%clk 0:02:44]}  h6 {[%clk 0:02:41]} 12. Be2 {[%clk 0:02:41]}  d5 {[%clk 0:02:33]} 13. Bf3 {[%clk 0:02:34]}  Ne5 {[%clk 0:02:30]} 14. exd5 {[%clk 0:02:28]}  Nxf3 {[%clk 0:02:30]} 15. Nxf3 {[%clk 0:02:19]}  Nxd5 {[%clk 0:02:29]} 16. Bd4 {[%clk 0:02:19]}  O-O {[%clk 0:02:27]} 17. Ne5 {[%clk 0:02:10]}  f6 {[%clk 0:02:23]} 18. Ng6 {[%clk 0:02:09]}  Re8 {[%clk 0:02:23]} 19. c4 {[%clk 0:02:08]}  Nb4 {[%clk 0:02:22]} 20. Bc5 {[%clk 0:01:58]}  Nc6 {[%clk 0:02:21]} 21. Rd6 {[%clk 0:01:57]}  e5 {[%clk 0:02:15]} 22. Bb6 {[%clk 0:01:55]}  Kf7 {[%clk 0:02:10]} 23. Nh4 {[%clk 0:01:52]}  Be6 {[%clk 0:02:09]} 24. c5 {[%clk 0:01:46]}  Rac8 {[%clk 0:02:07]} 25. Kb2 {[%clk 0:01:45]}  Nd4 {[%clk 0:01:58]} 26. a4 {[%clk 0:01:36]}  Nc6 {[%clk 0:01:45]} 27. c3 {[%clk 0:01:26]}  Ne7 {[%clk 0:01:45]} 28. Rhd1 {[%clk 0:01:25]}  Rc6 {[%clk 0:01:37]} 29. a5 {[%clk 0:01:14]}  g5 {[%clk 0:01:27]} 30. Nf3 {[%clk 0:01:14]}  Bg4 {[%clk 0:01:24]} 31. Rd8 {[%clk 0:01:03]}  Rc8 {[%clk 0:01:20]} 32. Rxe8 {[%clk 0:00:58]}  Rxe8 {[%clk 0:01:17]} 33. Rd6 {[%clk 0:00:54]}  Nc6 {[%clk 0:01:12]} 34. Nd2 {[%clk 0:00:52]}  Be6 {[%clk 0:01:07]} 35. f3 {[%clk 0:00:43]}  Ke7 {[%clk 0:01:05]} 36. g4 {[%clk 0:00:42]}  Rh8 {[%clk 0:01:03]} 37. Ne4 {[%clk 0:00:40]}  h5 {[%clk 0:01:03]} 38. gxh5 {[%clk 0:00:40]}  Rxh5 {[%clk 0:01:04]} 39. Bc7 {[%clk 0:00:32]}  f5 {[%clk 0:01:02]} 40. Ng3 {[%clk 0:00:25]}  Rh2 {[%clk 0:00:57]} 41. Rd2 {[%clk 0:00:26]}  e4 {[%clk 0:00:38]} 42. Nxf5+ {[%clk 0:00:22]}  Bxf5 {[%clk 0:00:37]} 43. Bxh2 {[%clk 0:00:23]}  exf3 {[%clk 0:00:35]} 44. gxf3 {[%clk 0:00:22]}  Nxa5 {[%clk 0:00:36]} 45. Re2+ {[%clk 0:00:20]}  Kf6 {[%clk 0:00:35]} 46. Bd6 {[%clk 0:00:18]}  Bd3 {[%clk 0:00:33]} 47. Re7 {[%clk 0:00:16]}  b5 {[%clk 0:00:30]} 48. Ra7 {[%clk 0:00:10]}  Nc4+ {[%clk 0:00:28]} 49. Kc1 {[%clk 0:00:10]}  a5 {[%clk 0:00:28]} 50. Bc7 {[%clk 0:00:10]}  a4 {[%clk 0:00:28]} 51. c6 {[%clk 0:00:10]}  Be2 {[%clk 0:00:25]} 52. Bd8+ {[%clk 0:00:10]}  Ke6 {[%clk 0:00:25]} 53. Re7+ {[%clk 0:00:11]}  Kd5 {[%clk 0:00:24]} 54. Rxe2 {[%clk 0:00:12]}  Kxc6 {[%clk 0:00:25]} 55. Bxg5 {[%clk 0:00:11]}  Kd5 {[%clk 0:00:25]} 56. Bf4 {[%clk 0:00:09]}  Na5 {[%clk 0:00:25]} 57. Kb2 {[%clk 0:00:09]}  Nb3 {[%clk 0:00:23]} 58. Re8 {[%clk 0:00:07]}  Kc4 {[%clk 0:00:21]} 59. Rc8+ {[%clk 0:00:07]}  Kd3 {[%clk 0:00:21]} 60. Be5 {[%clk 0:00:06]}  Na5 {[%clk 0:00:21]} 61. Bd4 {[%clk 0:00:05]}  Nb3 {[%clk 0:00:19]} 62. f4 {[%clk 0:00:04]}  Ke4 {[%clk 0:00:19]} 63. Re8+ {[%clk 0:00:03]}  Kxf4 {[%clk 0:00:19]} 64. Rb8 {[%clk 0:00:03]}  Ke4 {[%clk 0:00:18]} 65. Rxb5 {[%clk 0:00:03]}  Nd2 {[%clk 0:00:19]} 66. Rb4 {[%clk 0:00:03]}  Kd3 {[%clk 0:00:18]} 67. Rxa4 {[%clk 0:00:03]}  Ne4 {[%clk 0:00:18]} 68. Be5 {[%clk 0:00:03]}  Nc5 {[%clk 0:00:18]} 69. Rd4+ {[%clk 0:00:03]}  Ke2 {[%clk 0:00:18]} 70. Bh8 {[%clk 0:00:03]}  Ke3 {[%clk 0:00:18]} 71. Kc2 {[%clk 0:00:02]}  Ne6 {[%clk 0:00:17]} 72. Rd6 {[%clk 0:00:02]}  Ng5 {[%clk 0:00:16]} 73. Bd4+ {[%clk 0:00:03]}  Ke4 {[%clk 0:00:17]} 74. Rg6 {[%clk 0:00:03]}  Nf3 {[%clk 0:00:16]} 75. Rg4+ {[%clk 0:00:04]}  Kd5 {[%clk 0:00:16]} 76. Rg3 {[%clk 0:00:04]}  Nh4 {[%clk 0:00:14]} 77. Kd3 {[%clk 0:00:04]}  Ke6 {[%clk 0:00:14]} 78. Ke4 {[%clk 0:00:03]}  Kf7 {[%clk 0:00:11]} 79. Kd5 {[%clk 0:00:03]}  Ke7 {[%clk 0:00:11]} 80. Re3+ {[%clk 0:00:02]}  Kd7 {[%clk 0:00:11]} 81. c4 {[%clk 0:00:03]}  Nf5 {[%clk 0:00:11]} 82. c5 {[%clk 0:00:03]}  Ne7+ {[%clk 0:00:12]} 83. Rxe7+ {[%clk 0:00:03]}  Kxe7 {[%clk 0:00:12]} 84. Kc6 {[%clk 0:00:04]}  Kd8 {[%clk 0:00:13]} 85. Kb7 {[%clk 0:00:04]}  Kd7 {[%clk 0:00:13]} 86. c6+ {[%clk 0:00:05]}  Ke6 {[%clk 0:00:14]} 87. c7 {[%clk 0:00:06]} 1-0


[Site "https://www.chess.com"]

[Event "Titled Tuesday Blitz November 29 Early 2022"]
[White "Palacio,Igor Da Paz"]
[Black "Van Osch, Mees"]
[WhiteFideId "2121140"]
[BlackFideId "1035967"]
[WhiteElo "2126"]
[BlackElo "2324"]
[Result "0-1"]
[Round "08"]
[TimeControl "180+1"]
[Date "2022.11.30"]
[WhiteClock "0:00:01"]
[BlackClock "0:00:55"]

1. e4 {[%clk 0:02:27]}  c6 {[%clk 0:02:56]} 2. d4 {[%clk 0:02:27]}  d5 {[%clk 0:02:56]} 3. Nd2 {[%clk 0:02:27]}  dxe4 {[%clk 0:02:56]} 4. Nxe4 {[%clk 0:02:28]}  Nf6 {[%clk 0:02:57]} 5. Nxf6+ {[%clk 0:02:27]}  exf6 {[%clk 0:02:58]} 6. c3 {[%clk 0:02:26]}  Bd6 {[%clk 0:02:52]} 7. Bd3 {[%clk 0:02:25]}  O-O {[%clk 0:02:52]} 8. Qc2 {[%clk 0:02:24]}  g6 {[%clk 0:02:41]} 9. Ne2 {[%clk 0:02:22]}  Re8 {[%clk 0:02:38]} 10. Be3 {[%clk 0:02:21]}  b5 {[%clk 0:02:33]} 11. h4 {[%clk 0:02:13]}  Nd7 {[%clk 0:02:25]} 12. h5 {[%clk 0:02:10]}  Nf8 {[%clk 0:02:25]} 13. O-O-O {[%clk 0:02:06]}  a5 {[%clk 0:02:22]} 14. Bh6 {[%clk 0:01:59]}  f5 {[%clk 0:02:16]} 15. d5 {[%clk 0:01:30]}  cxd5 {[%clk 0:02:03]} 16. Bxb5 {[%clk 0:01:29]}  Bd7 {[%clk 0:02:03]} 17. Rxd5 {[%clk 0:01:09]}  Bxb5 {[%clk 0:01:57]} 18. Rxb5 {[%clk 0:01:07]}  a4 {[%clk 0:01:53]} 19. Rd1 {[%clk 0:00:47]}  Qe7 {[%clk 0:01:46]} 20. Be3 {[%clk 0:00:27]}  a3 {[%clk 0:01:46]} 21. b3 {[%clk 0:00:26]}  Be5 {[%clk 0:01:31]} 22. Bd4 {[%clk 0:00:16]}  Bxd4 {[%clk 0:01:28]} 23. Nxd4 {[%clk 0:00:17]}  Rac8 {[%clk 0:01:27]} 24. c4 {[%clk 0:00:15]}  Qg5+ {[%clk 0:01:26]} 25. Qd2 {[%clk 0:00:13]}  Qxh5 {[%clk 0:01:25]} 26. Rd5 {[%clk 0:00:12]}  Qg4 {[%clk 0:01:18]} 27. f3 {[%clk 0:00:08]}  Qg3 {[%clk 0:01:15]} 28. Nb5 {[%clk 0:00:07]}  Ne6 {[%clk 0:01:14]} 29. Nd6 {[%clk 0:00:07]}  Red8 {[%clk 0:01:10]} 30. Nxc8 {[%clk 0:00:06]}  Rxc8 {[%clk 0:01:11]} 31. Kb1 {[%clk 0:00:05]}  h5 {[%clk 0:01:06]} 32. Rh1 {[%clk 0:00:03]}  Qc7 {[%clk 0:01:03]} 33. Rd1 {[%clk 0:00:03]}  Rb8 {[%clk 0:01:01]} 34. Rd7 {[%clk 0:00:03]}  Qxc4 {[%clk 0:01:00]} 35. Rd8+ {[%clk 0:00:02]}  Nxd8 {[%clk 0:00:56]} 36. Qxd8+ {[%clk 0:00:02]}  Kg7 {[%clk 0:00:55]} 37. Qxb8 {[%clk 0:00:01]}  Qc3 {[%clk 0:00:55]} 0-1


[Site "https://www.chess.com"]